[Event "Live Chess"]
[Site "Chess.com"]
[Date "2010.12.14"]
[Round "-"]
[White "hipposcottimus"]
[Black "kembro13"]
[Result "1-0"]
[CurrentPosition "6k1/B4ppp/2Q5/3p4/4qPKb/4r3/P1P4P/8 b - -"]
[Timezone "UTC"]
[ECO "C50"]
[ECOUrl "https://www.chess.com/openings/Italian-Game-Hungarian-Defense-4.d4-exd4"]
[UTCDate "2010.12.14"]
[UTCTime "01:00:47"]
[WhiteElo "1687"]
[BlackElo "1721"]
[TimeControl "60"]
[Termination "hipposcottimus won on time"]
[StartTime "01:00:47"]
[EndDate "2010.12.14"]
[EndTime "01:03:01"]
[Link "https://www.chess.com/game/live/77054218"]

1. e4 {[%clk 0:01:00]} 1... e5 {[%clk 0:01:00]} 2. Nf3 {[%clk 0:00:59.7]} 2... Nc6 {[%clk 0:00:50.1]} 3. Bc4 {[%clk 0:00:59]} 3... Be7 {[%clk 0:00:49.1]} 4. d4 {[%clk 0:00:56.8]} 4... exd4 {[%clk 0:00:47.1]} 5. Nbd2 {[%clk 0:00:55.6]} 5... d6 {[%clk 0:00:45.8]} 6. Nb3 {[%clk 0:00:54.6]} 6... Nf6 {[%clk 0:00:44.5]} 7. Nbxd4 {[%clk 0:00:52]} 7... Nxe4 {[%clk 0:00:42.6]} 8. O-O {[%clk 0:00:48.5]} 8... d5 {[%clk 0:00:41.7]} 9. Bb5 {[%clk 0:00:45.8]} 9... Bd7 {[%clk 0:00:40.7]} 10. Bxc6 {[%clk 0:00:45.3]} 10... bxc6 {[%clk 0:00:38.1]} 11. Nd2 {[%clk 0:00:44.6]} 11... Nxd2 {[%clk 0:00:35.3]} 12. Qxd2 {[%clk 0:00:42.8]} 12... O-O {[%clk 0:00:35]} 13. Re1 {[%clk 0:00:42]} 13... Bf6 {[%clk 0:00:33.6]} 14. Nf3 {[%clk 0:00:40.1]} 14... Re8 {[%clk 0:00:28.1]} 15. Re3 {[%clk 0:00:36]} 15... Bg4 {[%clk 0:00:25.4]} 16. Rxe8+ {[%clk 0:00:29.8]} 16... Qxe8 {[%clk 0:00:24.4]} 17. Qf4 {[%clk 0:00:24.4]} 17... Bxf3 {[%clk 0:00:20.8]} 18. gxf3 {[%clk 0:00:24.1]} 18... Qe1+ {[%clk 0:00:18.1]} 19. Kg2 {[%clk 0:00:23.8]} 19... Re8 {[%clk 0:00:16.9]} 20. Be3 {[%clk 0:00:21.4]} 20... Qxa1 {[%clk 0:00:15.3]} 21. Qxc7 {[%clk 0:00:18.9]} 21... Qxb2 {[%clk 0:00:14]} 22. Qxc6 {[%clk 0:00:16.7]} 22... Qe5 {[%clk 0:00:12.8]} 23. Bxa7 {[%clk 0:00:14]} 23... Qg5+ {[%clk 0:00:11.1]} 24. Kf1 {[%clk 0:00:13.7]} 24... Qe5 {[%clk 0:00:09.2]} 25. Kg2 {[%clk 0:00:12.6]} 25... Bh4 {[%clk 0:00:08.4]} 26. f4 {[%clk 0:00:10.6]} 26... Qe4+ {[%clk 0:00:07.3]} 27. Kf1 {[%clk 0:00:07.3]} 27... Qe1+ {[%clk 0:00:06]} 28. Kg2 {[%clk 0:00:07]} 28... Qxf2+ {[%clk 0:00:05.7]} 29. Kh3 {[%clk 0:00:06.4]} 29... Re3+ {[%clk 0:00:05.3]} 30. Kg4 {[%clk 0:00:05]} 30... Qg2+ {[%clk 0:00:00.7]} 31. Kf5 {[%clk 0:00:04.6]} 31... Qe4+ {[%clk 0:00:00.1]} 32. Kg4 {[%clk 0:00:02]} 1-0

[Event "Live Chess"]
[Site "Chess.com"]
[Date "2010.12.14"]
[Round "-"]
[White "kembro13"]
[Black "hipposcottimus"]
[Result "1-0"]
[CurrentPosition "6k1/p6p/8/2P5/4R3/2N3P1/PP3P1P/5RK1 b - -"]
[Timezone "UTC"]
[ECO "C45"]
[ECOUrl "https://www.chess.com/openings/Scotch-Game"]
[UTCDate "2010.12.14"]
[UTCTime "00:58:27"]
[WhiteElo "1730"]
[BlackElo "1678"]
[TimeControl "60"]
[Termination "kembro13 won by resignation"]
[StartTime "00:58:27"]
[EndDate "2010.12.14"]
[EndTime "01:00:35"]
[Link "https://www.chess.com/game/live/77053658"]

1. e4 {[%clk 0:01:00]} 1... e5 {[%clk 0:01:00]} 2. Nf3 {[%clk 0:00:59.1]} 2... Nc6 {[%clk 0:00:59.4]} 3. d4 {[%clk 0:00:58]} 3... d5 {[%clk 0:00:58.6]} 4. exd5 {[%clk 0:00:56.8]} 4... e4 {[%clk 0:00:57.7]} 5. dxc6 {[%clk 0:00:56.3]} 5... exf3 {[%clk 0:00:56.9]} 6. Qxf3 {[%clk 0:00:55.9]} 6... Rb8 {[%clk 0:00:52.7]} 7. Be3 {[%clk 0:00:53.3]} 7... Bd6 {[%clk 0:00:51.8]} 8. Bc4 {[%clk 0:00:48.9]} 8... Be6 {[%clk 0:00:46.2]} 9. Bxe6 {[%clk 0:00:46.6]} 9... fxe6 {[%clk 0:00:46]} 10. cxb7 {[%clk 0:00:45.8]} 10... Ne7 {[%clk 0:00:44.8]} 11. O-O {[%clk 0:00:43.9]} 11... Nf5 {[%clk 0:00:44.2]} 12. c4 {[%clk 0:00:41.9]} 12... O-O {[%clk 0:00:43.3]} 13. Qe4 {[%clk 0:00:39.8]} 13... c6 {[%clk 0:00:37.9]} 14. Qxe6+ {[%clk 0:00:38.3]} 14... Kh8 {[%clk 0:00:35.6]} 15. c5 {[%clk 0:00:36.7]} 15... Bc7 {[%clk 0:00:33.6]} 16. Qxc6 {[%clk 0:00:35.8]} 16... Rf6 {[%clk 0:00:25.8]} 17. Qe4 {[%clk 0:00:29.7]} 17... Qf8 {[%clk 0:00:17.6]} 18. Nc3 {[%clk 0:00:26.3]} 18... Nh6 {[%clk 0:00:17.2]} 19. Bxh6 {[%clk 0:00:25]} 19... Rg6 {[%clk 0:00:16.9]} 20. Bxg7+ {[%clk 0:00:22.6]} 20... Rxg7 {[%clk 0:00:16.7]} 21. Rae1 {[%clk 0:00:20.6]} 21... Qg8 {[%clk 0:00:16.4]} 22. g3 {[%clk 0:00:19]} 22... Qd8 {[%clk 0:00:14.5]} 23. d5 {[%clk 0:00:16.2]} 23... Rxb7 {[%clk 0:00:11.7]} 24. d6 {[%clk 0:00:14.8]} 24... Rb4 {[%clk 0:00:04]} 25. dxc7 {[%clk 0:00:10.3]} 25... Rxe4 {[%clk 0:00:02.2]} 26. cxd8=Q+ {[%clk 0:00:08.4]} 26... Rg8 {[%clk 0:00:01.9]} 27. Qxg8+ {[%clk 0:00:05.8]} 27... Kxg8 {[%clk 0:00:00.4]} 28. Rxe4 {[%clk 0:00:05.5]} 1-0

[Event "Live Chess"]
[Site "Chess.com"]
[Date "2010.12.14"]
[Round "-"]
[White "hipposcottimus"]
[Black "kembro13"]
[Result "0-1"]
[CurrentPosition "6k1/5pp1/2p5/2p2P2/2P5/p7/6r1/3K3q w - -"]
[Timezone "UTC"]
[ECO "C50"]
[ECOUrl "https://www.chess.com/openings/Italian-Game-Hungarian-Defense-4.d4-exd4-5.Nxd4-d6"]
[UTCDate "2010.12.14"]
[UTCTime "00:55:58"]
[WhiteElo "1685"]
[BlackElo "1723"]
[TimeControl "60"]
[Termination "kembro13 won by checkmate"]
[StartTime "00:55:58"]
[EndDate "2010.12.14"]
[EndTime "00:58:06"]
[Link "https://www.chess.com/game/live/77053125"]

1. e4 {[%clk 0:01:00]} 1... e5 {[%clk 0:01:00]} 2. Nf3 {[%clk 0:00:59.3]} 2... Nc6 {[%clk 0:00:59.5]} 3. Bc4 {[%clk 0:00:58.7]} 3... Be7 {[%clk 0:00:58.4]} 4. d4 {[%clk 0:00:56.7]} 4... exd4 {[%clk 0:00:56.7]} 5. Nxd4 {[%clk 0:00:56.5]} 5... d6 {[%clk 0:00:55]} 6. Nxc6 {[%clk 0:00:54]} 6... bxc6 {[%clk 0:00:54.7]} 7. Nc3 {[%clk 0:00:53.5]} 7... Nf6 {[%clk 0:00:54.2]} 8. Bd3 {[%clk 0:00:53.2]} 8... O-O {[%clk 0:00:53.8]} 9. O-O {[%clk 0:00:52.7]} 9... Nd7 {[%clk 0:00:53.2]} 10. f4 {[%clk 0:00:52.4]} 10... Bf6 {[%clk 0:00:52.9]} 11. Ne2 {[%clk 0:00:49.3]} 11... Rb8 {[%clk 0:00:50.6]} 12. c3 {[%clk 0:00:49]} 12... Re8 {[%clk 0:00:49.3]} 13. Rb1 {[%clk 0:00:46.8]} 13... Nc5 {[%clk 0:00:48.5]} 14. Ng3 {[%clk 0:00:43]} 14... Nxd3 {[%clk 0:00:47.2]} 15. Qxd3 {[%clk 0:00:42.7]} 15... Qe7 {[%clk 0:00:41.8]} 16. f5 {[%clk 0:00:42.1]} 16... Bb7 {[%clk 0:00:37.4]} 17. c4 {[%clk 0:00:38.7]} 17... c5 {[%clk 0:00:34.3]} 18. b3 {[%clk 0:00:36.4]} 18... Bxe4 {[%clk 0:00:33]} 19. Nxe4 {[%clk 0:00:34.3]} 19... Qxe4 {[%clk 0:00:32.6]} 20. Qxe4 {[%clk 0:00:33.2]} 20... Rxe4 {[%clk 0:00:32]} 21. Bb2 {[%clk 0:00:32.9]} 21... Bxb2 {[%clk 0:00:30.1]} 22. Rxb2 {[%clk 0:00:32.7]} 22... Rbe8 {[%clk 0:00:29.9]} 23. Rff2 {[%clk 0:00:30.9]} 23... a5 {[%clk 0:00:29]} 24. g3 {[%clk 0:00:28.7]} 24... c6 {[%clk 0:00:23.8]} 25. Kg2 {[%clk 0:00:27.8]} 25... Rd8 {[%clk 0:00:22.9]} 26. h3 {[%clk 0:00:27.1]} 26... d5 {[%clk 0:00:22.4]} 27. a3 {[%clk 0:00:24.9]} 27... d4 {[%clk 0:00:21.5]} 28. Rfd2 {[%clk 0:00:22.7]} 28... d3 {[%clk 0:00:19.5]} 29. Rxd3 {[%clk 0:00:21.5]} 29... Rxd3 {[%clk 0:00:18.1]} 30. Rc2 {[%clk 0:00:17.8]} 30... Ree3 {[%clk 0:00:17.2]} 31. Rf2 {[%clk 0:00:17.3]} 31... Rxg3+ {[%clk 0:00:16.2]} 32. Kf1 {[%clk 0:00:17]} 32... Rdf3 {[%clk 0:00:15.1]} 33. Ke2 {[%clk 0:00:16.7]} 33... Rxf2+ {[%clk 0:00:14.2]} 34. Kxf2 {[%clk 0:00:16.5]} 34... Rxh3 {[%clk 0:00:13.9]} 35. Ke2 {[%clk 0:00:16.2]} 35... Rxb3 {[%clk 0:00:13.2]} 36. Kd2 {[%clk 0:00:16]} 36... Rxa3 {[%clk 0:00:12.8]} 37. Ke2 {[%clk 0:00:15.7]} 37... Rh3 {[%clk 0:00:12.3]} 38. Kd2 {[%clk 0:00:15.5]} 38... a4 {[%clk 0:00:12]} 39. Kc2 {[%clk 0:00:14.2]} 39... h5 {[%clk 0:00:11.3]} 40. Kb1 {[%clk 0:00:13.8]} 40... Rh2 {[%clk 0:00:10]} 41. Kc1 {[%clk 0:00:12.8]} 41... a3 {[%clk 0:00:09.6]} 42. Kb1 {[%clk 0:00:12.6]} 42... Rg2 {[%clk 0:00:08.7]} 43. Ka1 {[%clk 0:00:12.1]} 43... h4 {[%clk 0:00:07.4]} 44. Kb1 {[%clk 0:00:10.2]} 44... h3 {[%clk 0:00:07.2]} 45. Kc1 {[%clk 0:00:09.7]} 45... h2 {[%clk 0:00:07]} 46. Kd1 {[%clk 0:00:09.4]} 46... h1=Q# {[%clk 0:00:06.1]} 0-1

[Event "Live Chess"]
[Site "Chess.com"]
[Date "2010.12.14"]
[Round "-"]
[White "kembro13"]
[Black "hipposcottimus"]
[Result "0-1"]
[CurrentPosition "3Q4/p4p1p/6k1/2B2r2/2P5/1P6/P4P1K/3R1R2 w - -"]
[Timezone "UTC"]
[ECO "C45"]
[ECOUrl "https://www.chess.com/openings/Scotch-Game"]
[UTCDate "2010.12.14"]
[UTCTime "00:53:02"]
[WhiteElo "1716"]
[BlackElo "1692"]
[TimeControl "60"]
[Termination "hipposcottimus won on time"]
[StartTime "00:53:02"]
[EndDate "2010.12.14"]
[EndTime "00:55:14"]
[Link "https://www.chess.com/game/live/77052467"]

1. e4 {[%clk 0:01:00]} 1... e5 {[%clk 0:01:00]} 2. Nf3 {[%clk 0:00:59.4]} 2... Nc6 {[%clk 0:00:59.6]} 3. d4 {[%clk 0:00:58.3]} 3... d5 {[%clk 0:00:56.8]} 4. exd5 {[%clk 0:00:56.9]} 4... e4 {[%clk 0:00:55.5]} 5. dxc6 {[%clk 0:00:55.7]} 5... exf3 {[%clk 0:00:54.7]} 6. Qxf3 {[%clk 0:00:47.2]} 6... Rb8 {[%clk 0:00:51.2]} 7. Be3 {[%clk 0:00:40.6]} 7... Nf6 {[%clk 0:00:48.7]} 8. h3 {[%clk 0:00:36.8]} 8... Bd6 {[%clk 0:00:45]} 9. Nc3 {[%clk 0:00:35.5]} 9... O-O {[%clk 0:00:43]} 10. Bb5 {[%clk 0:00:34]} 10... bxc6 {[%clk 0:00:42.7]} 11. Bxc6 {[%clk 0:00:33.3]} 11... Rb6 {[%clk 0:00:42.1]} 12. O-O {[%clk 0:00:31.5]} 12... Qe7 {[%clk 0:00:39.5]} 13. b3 {[%clk 0:00:29]} 13... Bd7 {[%clk 0:00:36.8]} 14. Bxd7 {[%clk 0:00:27.7]} 14... Qxd7 {[%clk 0:00:36.5]} 15. Ne4 {[%clk 0:00:26.4]} 15... c6 {[%clk 0:00:34.2]} 16. Nxf6+ {[%clk 0:00:25.1]} 16... gxf6 {[%clk 0:00:32.2]} 17. Qxf6 {[%clk 0:00:24.8]} 17... Be7 {[%clk 0:00:30.1]} 18. Qf3 {[%clk 0:00:20.6]} 18... Kh8 {[%clk 0:00:29.7]} 19. c4 {[%clk 0:00:19.5]} 19... Rg8 {[%clk 0:00:29.2]} 20. Rad1 {[%clk 0:00:18.7]} 20... c5 {[%clk 0:00:28.6]} 21. d5 {[%clk 0:00:18]} 21... Rbg6 {[%clk 0:00:24.5]} 22. g4 {[%clk 0:00:12.6]} 22... Rxg4+ {[%clk 0:00:19.1]} 23. hxg4 {[%clk 0:00:12]} 23... Rxg4+ {[%clk 0:00:18.8]} 24. Kh2 {[%clk 0:00:10.8]} 24... Bd6+ {[%clk 0:00:14.8]} 25. Kh1 {[%clk 0:00:07.5]} 25... Rh4+ {[%clk 0:00:13.5]} 26. Kg1 {[%clk 0:00:06.4]} 26... Bh2+ {[%clk 0:00:10.7]} 27. Kg2 {[%clk 0:00:05.3]} 27... Qg4+ {[%clk 0:00:08.5]} 28. Qxg4 {[%clk 0:00:03.5]} 28... Rxg4+ {[%clk 0:00:08.3]} 29. Kxh2 {[%clk 0:00:03.1]} 29... Rg6 {[%clk 0:00:07.9]} 30. d6 {[%clk 0:00:02.4]} 30... Rf6 {[%clk 0:00:06.8]} 31. d7 {[%clk 0:00:01.5]} 31... Rf5 {[%clk 0:00:06.3]} 32. d8=Q+ {[%clk 0:00:00.3]} 32... Kg7 {[%clk 0:00:04.9]} 33. Bxc5 {[%clk 0:00:00.1]} 33... Kg6 {[%clk 0:00:04.6]} 0-1

[Event "Live Chess"]
[Site "Chess.com"]
[Date "2010.12.14"]
[Round "-"]
[White "hipposcottimus"]
[Black "Lenny714"]
[Result "1-0"]
[CurrentPosition "8/3PR2p/2kr2p1/p3p3/Pp6/1P6/6PP/3Q3K b - -"]
[Timezone "UTC"]
[ECO "B07"]
[ECOUrl "https://www.chess.com/openings/Pirc-Defense-Maroczy-Defense"]
[UTCDate "2010.12.14"]
[UTCTime "00:50:22"]
[WhiteElo "1683"]
[BlackElo "1280"]
[TimeControl "60"]
[Termination "hipposcottimus won on time"]
[StartTime "00:50:22"]
[EndDate "2010.12.14"]
[EndTime "00:52:28"]
[Link "https://www.chess.com/game/live/77051738"]

1. e4 {[%clk 0:01:00]} 1... d6 {[%clk 0:01:00]} 2. d4 {[%clk 0:00:58.1]} 2... e5 {[%clk 0:00:59.2]} 3. d5 {[%clk 0:00:56.8]} 3... f6 {[%clk 0:00:57.6]} 4. Nf3 {[%clk 0:00:56.4]} 4... Bd7 {[%clk 0:00:56.5]} 5. Nfd2 {[%clk 0:00:54.1]} 5... Ne7 {[%clk 0:00:56.1]} 6. Nb3 {[%clk 0:00:53.2]} 6... a6 {[%clk 0:00:55]} 7. Be2 {[%clk 0:00:52.2]} 7... b5 {[%clk 0:00:54.2]} 8. f4 {[%clk 0:00:52]} 8... c6 {[%clk 0:00:53.1]} 9. fxe5 {[%clk 0:00:50.8]} 9... fxe5 {[%clk 0:00:51.6]} 10. dxc6 {[%clk 0:00:49.6]} 10... Nbxc6 {[%clk 0:00:50.6]} 11. Bf3 {[%clk 0:00:49.2]} 11... Qc7 {[%clk 0:00:47.7]} 12. O-O {[%clk 0:00:48.1]} 12... g6 {[%clk 0:00:45.7]} 13. Bg5 {[%clk 0:00:45.3]} 13... O-O-O {[%clk 0:00:40.7]} 14. Bf6 {[%clk 0:00:44.5]} 14... Rg8 {[%clk 0:00:36.5]} 15. Nc3 {[%clk 0:00:44.1]} 15... Bg7 {[%clk 0:00:34]} 16. Bxg7 {[%clk 0:00:43.2]} 16... Rxg7 {[%clk 0:00:31]} 17. Nd5 {[%clk 0:00:42.9]} 17... Nxd5 {[%clk 0:00:29.3]} 18. exd5 {[%clk 0:00:41.9]} 18... Nb4 {[%clk 0:00:26.6]} 19. a3 {[%clk 0:00:39.6]} 19... Nxc2 {[%clk 0:00:25.6]} 20. Rc1 {[%clk 0:00:37.1]} 20... Bf5 {[%clk 0:00:22.2]} 21. Be2 {[%clk 0:00:30.7]} 21... Kd7 {[%clk 0:00:21.2]} 22. Nd4 {[%clk 0:00:28.4]} 22... Re7 {[%clk 0:00:19.8]} 23. Nxc2 {[%clk 0:00:26.4]} 23... Bxc2 {[%clk 0:00:18.2]} 24. Rxc2 {[%clk 0:00:26.2]} 24... Qb6+ {[%clk 0:00:17.8]} 25. Kh1 {[%clk 0:00:24.6]} 25... Rde8 {[%clk 0:00:16.2]} 26. b3 {[%clk 0:00:23.7]} 26... a5 {[%clk 0:00:15.1]} 27. a4 {[%clk 0:00:23]} 27... b4 {[%clk 0:00:14]} 28. Bb5+ {[%clk 0:00:22.3]} 28... Kd8 {[%clk 0:00:11.5]} 29. Rc6 {[%clk 0:00:21.9]} 29... Qb7 {[%clk 0:00:08.2]} 30. Rxd6+ {[%clk 0:00:20.9]} 30... Rd7 {[%clk 0:00:06.5]} 31. Rxd7+ {[%clk 0:00:18]} 31... Qxd7 {[%clk 0:00:05.8]} 32. Bxd7 {[%clk 0:00:17.6]} 32... Kxd7 {[%clk 0:00:05.5]} 33. d6 {[%clk 0:00:17]} 33... Re6 {[%clk 0:00:04.3]} 34. Rf7+ {[%clk 0:00:16.5]} 34... Kc6 {[%clk 0:00:01.7]} 35. d7 {[%clk 0:00:14.2]} 35... Rd6 {[%clk 0:00:01.1]} 36. Re7 {[%clk 0:00:10.7]} 1-0

[Event "Live Chess"]
[Site "Chess.com"]
[Date "2010.12.14"]
[Round "-"]
[White "Lenny714"]
[Black "hipposcottimus"]
[Result "0-1"]
[CurrentPosition "6k1/p1n3pp/2p3q1/1p1pP3/3Q1P2/1P5P/P3N1P1/4R1K1 w - -"]
[Timezone "UTC"]
[ECO "C22"]
[ECOUrl "https://www.chess.com/openings/Center-Game-Accepted-Paulsen-Attack"]
[UTCDate "2010.12.14"]
[UTCTime "00:47:41"]
[WhiteElo "1281"]
[BlackElo "1682"]
[TimeControl "60"]
[Termination "hipposcottimus won on time"]
[StartTime "00:47:41"]
[EndDate "2010.12.14"]
[EndTime "00:49:41"]
[Link "https://www.chess.com/game/live/77051201"]

1. e4 {[%clk 0:01:00]} 1... e5 {[%clk 0:01:00]} 2. d4 {[%clk 0:00:59.2]} 2... exd4 {[%clk 0:00:58.4]} 3. Qxd4 {[%clk 0:00:58.9]} 3... Nc6 {[%clk 0:00:57.9]} 4. Qe3 {[%clk 0:00:58.3]} 4... d6 {[%clk 0:00:57.4]} 5. Bd3 {[%clk 0:00:57.5]} 5... Nf6 {[%clk 0:00:56.7]} 6. Ne2 {[%clk 0:00:56.7]} 6... Be7 {[%clk 0:00:53.8]} 7. f3 {[%clk 0:00:56]} 7... O-O {[%clk 0:00:52.1]} 8. O-O {[%clk 0:00:55.3]} 8... Ne8 {[%clk 0:00:51.6]} 9. b3 {[%clk 0:00:54.6]} 9... f5 {[%clk 0:00:51.2]} 10. Bb2 {[%clk 0:00:53.7]} 10... f4 {[%clk 0:00:50]} 11. Qd2 {[%clk 0:00:52.3]} 11... Ne5 {[%clk 0:00:49]} 12. Nxf4 {[%clk 0:00:47.4]} 12... Nxd3 {[%clk 0:00:47.8]} 13. Nxd3 {[%clk 0:00:46.2]} 13... Bf6 {[%clk 0:00:45]} 14. Bxf6 {[%clk 0:00:43.3]} 14... Nxf6 {[%clk 0:00:44.4]} 15. Nc3 {[%clk 0:00:41.2]} 15... c6 {[%clk 0:00:41.9]} 16. Nf4 {[%clk 0:00:38.6]} 16... Be6 {[%clk 0:00:40.3]} 17. Nxe6 {[%clk 0:00:37.3]} 17... Qe7 {[%clk 0:00:40]} 18. Nxf8 {[%clk 0:00:36.1]} 18... Rxf8 {[%clk 0:00:39.8]} 19. Na4 {[%clk 0:00:32.4]} 19... Qf7 {[%clk 0:00:39.5]} 20. Rad1 {[%clk 0:00:29.6]} 20... b5 {[%clk 0:00:39.2]} 21. Nc3 {[%clk 0:00:26.5]} 21... Ne8 {[%clk 0:00:39]} 22. Ne2 {[%clk 0:00:24.7]} 22... d5 {[%clk 0:00:38.7]} 23. e5 {[%clk 0:00:22.5]} 23... Qf5 {[%clk 0:00:36.7]} 24. f4 {[%clk 0:00:20.4]} 24... Qe4 {[%clk 0:00:33.9]} 25. Ng3 {[%clk 0:00:18.3]} 25... Qg6 {[%clk 0:00:31.9]} 26. Rde1 {[%clk 0:00:15.5]} 26... Qg4 {[%clk 0:00:28.7]} 27. Ne2 {[%clk 0:00:13.1]} 27... Qg6 {[%clk 0:00:26.6]} 28. h3 {[%clk 0:00:12.3]} 28... Rf5 {[%clk 0:00:24.1]} 29. Nc3 {[%clk 0:00:10.2]} 29... Rh5 {[%clk 0:00:23.6]} 30. Rf3 {[%clk 0:00:08.8]} 30... Rh6 {[%clk 0:00:22.5]} 31. Qe3 {[%clk 0:00:06.3]} 31... Nc7 {[%clk 0:00:22]} 32. Rg3 {[%clk 0:00:05.7]} 32... Qxc2 {[%clk 0:00:20.7]} 33. Ne2 {[%clk 0:00:03.9]} 33... Qf5 {[%clk 0:00:18.9]} 34. Qd4 {[%clk 0:00:02]} 34... Rg6 {[%clk 0:00:18.2]} 35. Rxg6 {[%clk 0:00:00.3]} 35... Qxg6 {[%clk 0:00:18]} 0-1

[Event "Live Chess"]
[Site "Chess.com"]
[Date "2010.12.14"]
[Round "-"]
[White "hipposcottimus"]
[Black "Lenny714"]
[Result "1-0"]
[CurrentPosition "k2r2nr/p1N2pbp/P3pqp1/2pP4/8/1QP2B2/1P3PPP/R4RK1 b - -"]
[Timezone "UTC"]
[ECO "B01"]
[ECOUrl "https://www.chess.com/openings/Scandinavian-Defense-Mieses-Kotrc-Gubinsky-Melts-Defense-4.Nf3"]
[UTCDate "2010.12.14"]
[UTCTime "00:45:54"]
[WhiteElo "1681"]
[BlackElo "1282"]
[TimeControl "60"]
[Termination "hipposcottimus won by checkmate"]
[StartTime "00:45:54"]
[EndDate "2010.12.14"]
[EndTime "00:47:18"]
[Link "https://www.chess.com/game/live/77050787"]

1. e4 {[%clk 0:01:00]} 1... d5 {[%clk 0:01:00]} 2. exd5 {[%clk 0:00:58.2]} 2... Qxd5 {[%clk 0:00:59.2]} 3. Nc3 {[%clk 0:00:57.9]} 3... Qd6 {[%clk 0:00:58.3]} 4. Nf3 {[%clk 0:00:56.4]} 4... Be6 {[%clk 0:00:57.3]} 5. d4 {[%clk 0:00:54.9]} 5... Nd7 {[%clk 0:00:56.3]} 6. d5 {[%clk 0:00:53.8]} 6... Bg4 {[%clk 0:00:55.1]} 7. Be2 {[%clk 0:00:51.8]} 7... O-O-O {[%clk 0:00:52.8]} 8. O-O {[%clk 0:00:50.2]} 8... g6 {[%clk 0:00:51.2]} 9. Be3 {[%clk 0:00:49]} 9... b6 {[%clk 0:00:48.2]} 10. Nb5 {[%clk 0:00:46.8]} 10... Qf6 {[%clk 0:00:43.2]} 11. c3 {[%clk 0:00:42.7]} 11... Kb8 {[%clk 0:00:40.1]} 12. a4 {[%clk 0:00:40.4]} 12... Bg7 {[%clk 0:00:37.1]} 13. a5 {[%clk 0:00:38.8]} 13... Nc5 {[%clk 0:00:33.2]} 14. Bxc5 {[%clk 0:00:34.7]} 14... bxc5 {[%clk 0:00:31.7]} 15. a6 {[%clk 0:00:33.8]} 15... Bxf3 {[%clk 0:00:29.6]} 16. Bxf3 {[%clk 0:00:32.1]} 16... e6 {[%clk 0:00:26.7]} 17. Qb3 {[%clk 0:00:26.8]} 17... Ka8 {[%clk 0:00:19.9]} 18. Nxc7# {[%clk 0:00:25.6]} 1-0

[Event "Live Chess"]
[Site "Chess.com"]
[Date "2010.12.13"]
[Round "-"]
[White "GrigoriOctopus"]
[Black "hipposcottimus"]
[Result "0-1"]
[CurrentPosition "r2q1r1k/ppn1b1pp/2p1p3/2Q5/PP1PN3/2P5/5PPP/R1B1K2R b KQ -"]
[Timezone "UTC"]
[ECO "C55"]
[ECOUrl "https://www.chess.com/openings/Italian-Game-Two-Knights-Modern-Bishops-Opening-4...d5-5.exd5-Nxd5"]
[UTCDate "2010.12.13"]
[UTCTime "23:37:12"]
[WhiteElo "1308"]
[BlackElo "1438"]
[TimeControl "720"]
[Termination "hipposcottimus won by resignation"]
[StartTime "23:37:12"]
[EndDate "2010.12.13"]
[EndTime "23:44:37"]
[Link "https://www.chess.com/game/live/77034149"]

1. e4 {[%clk 0:12:00]} 1... e5 {[%clk 0:12:00]} 2. Nf3 {[%clk 0:11:57.7]} 2... Nc6 {[%clk 0:11:58.5]} 3. Bc4 {[%clk 0:11:54.4]} 3... Nf6 {[%clk 0:11:54.4]} 4. d3 {[%clk 0:11:49.5]} 4... d5 {[%clk 0:11:49]} 5. exd5 {[%clk 0:11:43.5]} 5... Nxd5 {[%clk 0:11:36.6]} 6. d4 {[%clk 0:11:19]} 6... e4 {[%clk 0:11:09.8]} 7. Ng5 {[%clk 0:11:09.8]} 7... Be6 {[%clk 0:10:42.9]} 8. Nxe6 {[%clk 0:10:52.9]} 8... fxe6 {[%clk 0:10:36]} 9. c3 {[%clk 0:10:42.9]} 9... Be7 {[%clk 0:10:31.1]} 10. Nd2 {[%clk 0:10:29.2]} 10... O-O {[%clk 0:10:22.9]} 11. Nxe4 {[%clk 0:10:27.3]} 11... Na5 {[%clk 0:10:16.4]} 12. Qe2 {[%clk 0:09:19.6]} 12... c6 {[%clk 0:09:40.6]} 13. a4 {[%clk 0:09:12.2]} 13... Nc7 {[%clk 0:09:36.4]} 14. b4 {[%clk 0:08:58.1]} 14... Nxc4 {[%clk 0:09:23.8]} 15. Qxc4 {[%clk 0:08:56.7]} 15... Kh8 {[%clk 0:09:23]} 16. Qc5 {[%clk 0:07:20]} 0-1

[Event "Live Chess"]
[Site "Chess.com"]
[Date "2010.12.13"]
[Round "-"]
[White "hipposcottimus"]
[Black "Computer4-IMPOSSIBLE"]
[Result "0-1"]
[CurrentPosition "r2r2k1/ppp1ppb1/6pp/1qN1n3/1P1P2b1/P3BN2/5PPP/2RQR1K1 w - -"]
[Timezone "UTC"]
[ECO "B06"]
[ECOUrl "https://www.chess.com/openings/Modern-Defense-with-1-e4-2.d4-d6"]
[UTCDate "2010.12.13"]
[UTCTime "22:30:33"]
[WhiteElo "1554"]
[BlackElo "2052"]
[TimeControl "600+10"]
[Termination "Computer4-IMPOSSIBLE won by resignation"]
[StartTime "22:30:33"]
[EndDate "2010.12.13"]
[EndTime "22:35:25"]
[Link "https://www.chess.com/game/live/77017016"]

1. e4 {[%clk 0:10:00]} 1... g6 {[%clk 0:10:00]} 2. d4 {[%clk 0:10:07.9]} 2... d6 {[%clk 0:10:00]} 3. Bd2 {[%clk 0:10:12.7]} 3... Bg7 {[%clk 0:10:00]} 4. Nf3 {[%clk 0:10:18.3]} 4... Nc6 {[%clk 0:10:00]} 5. c3 {[%clk 0:10:26.9]} 5... Nf6 {[%clk 0:10:00]} 6. Bd3 {[%clk 0:10:32.6]} 6... d5 {[%clk 0:10:00]} 7. e5 {[%clk 0:10:40.8]} 7... Ne4 {[%clk 0:10:00]} 8. O-O {[%clk 0:10:47.9]} 8... O-O {[%clk 0:10:00]} 9. Bxe4 {[%clk 0:10:56.4]} 9... dxe4 {[%clk 0:10:00]} 10. Ng5 {[%clk 0:11:06]} 10... Qd5 {[%clk 0:10:00]} 11. Re1 {[%clk 0:11:04.7]} 11... e3 {[%clk 0:10:00]} 12. Bxe3 {[%clk 0:11:10.1]} 12... h6 {[%clk 0:10:00]} 13. Nf3 {[%clk 0:11:17.7]} 13... Bg4 {[%clk 0:10:00]} 14. Nbd2 {[%clk 0:11:24.9]} 14... Rfd8 {[%clk 0:10:00]} 15. c4 {[%clk 0:11:31.7]} 15... Qa5 {[%clk 0:10:00]} 16. Nb3 {[%clk 0:11:38.1]} 16... Qb4 {[%clk 0:10:00]} 17. a3 {[%clk 0:11:45.1]} 17... Qxc4 {[%clk 0:10:00]} 18. Rc1 {[%clk 0:11:48]} 18... Qa4 {[%clk 0:10:00]} 19. Nc5 {[%clk 0:11:56.8]} 19... Qb5 {[%clk 0:10:00]} 20. b4 {[%clk 0:11:58.1]} 20... Nxe5 {[%clk 0:10:00]} 0-1